Cogmind - Beta 15 @@@ ROGUE MODE // 2025.07.20 @ 20:43:11 Player: FenRhew Result: Destroyed by P-70 Sage with Light Ion Engine chain reaction Performance ------------- Evolutions (6) 3000 Regions Visited (11) 2200 Robots Destroyed (162) 810 Value Destroyed (7674) 7674 Prototype IDs (19) 380 Alien Tech Used (0) 0 Bonus (4026) 4026 TOTAL SCORE: 18090 Bonus ------- High Alert Combat Kills 1181 Follower Combat Kills 2259 Network Hubs Disabled 200 Built Enhanced Grunts 300 Met R17 at Cetus 500 Friendly Fire -414 Cogmind --------- Core Integrity 0/1150 Matter 165/300 Energy 40/100 System Corruption 21% Temperature Cool (0) Movement Core (50) Location -4/Factory Parts ------- > --- POWER (2) -------- (None) > --- PROPULSION (6) --- (None) > --- UTILITY (9) ------ Advanced Cooling System Enhanced Optical Array Advanced Sensor Array Advanced Signal Interpreter Improved Targeting Computer > --- WEAPON (2) ------- (None) > --- INVENTORY (5) ---- Matter Compressor (250) Long-range Tractor Beam Coil Gun Powered Hammer Peak State ------------ > --- POWER ------------ Light Antimatter Reactor Light Particle Reactor > --- PROPULSION ------- Flexi-carbon Leg Flexi-carbon Leg Improved VSS Leg Myomer Leg Myomer Leg Myomer Leg > --- UTILITY ---------- Advanced Cryofiber Web Advanced Cooling System Large Storage Unit Enhanced Optical Array Advanced Signal Interpreter Improved Targeting Computer Improved Phase Shifter Centrium Medium Armor Plating Hacking Suite > --- WEAPON ----------- Advanced Plasma Cannon Advanced Plasma Cannon > --- INVENTORY -------- Advanced Cooling System Matter Compressor Advanced Sensor Array Advanced Sensor Array Kinecellerator Centrium Medium Armor Plating High-powered Tractor Beam Long-range Tractor Beam Improved Recalibrator Coil Gun Coil Gun Magnetic Acceleration Cannon Improved Proton Missile Launcher Powered Hammer [Rating: 115] Favorites ----------- Power Improved Deuterium Engine Engine Improved Deuterium Engine Power Core Neutrino Core Reactor Antimatter Reactor Propulsion Flexi-carbon Leg Treads Light Treads Leg Flexi-carbon Leg Utility Large Storage Unit Device Improved Sensor Array Storage Large Storage Unit Processor Improved Signal Interpreter Hackware Hacking Suite Protection Centrium Medium Armor Plating Weapon Advanced KE Penetrator Energy Gun Medium Laser Energy Cannon EM Pulse Cannon Ballistic Gun Advanced KE Penetrator Ballistic Cannon Gauss Cannon Launcher Heavy Rocket Launcher Impact Weapon Powered Hammer Slashing Weapon Mining Claw Build | -11 -10 -10 -8 -7 -6 -6 -6 -6 -6 -5 -4 ------- Run | Yrd Mat Sub Mat Fac Fac Ext Cet Arc Hub Fac Fac Slots Evolved 12 | . . . 4 2 2 . . . . 2 2 Power 1 | . . . . . . . . . . . 1 Propulsion 4 | . . . 2 . . . . . . 1 1 Utility 7 | . . . 2 2 2 . . . . 1 . Weapon . | . . . . . . . . . . . . Parts Attached 153 | 6 2 12 34 6 16 19 12 1 11 9 25 Power 19 | 1 . 2 5 1 . 2 1 1 1 1 4 Engine 9 | 1 . 2 3 1 . 2 . . . . . Core 6 | . . . 2 . . . 1 1 1 . 1 Reactor 4 | . . . . . . . . . . 1 3 Propulsion 41 | 2 . 5 6 1 3 6 4 . 7 2 5 Treads 6 | 2 . 2 2 . . . . . . . . Leg 35 | . . 3 4 1 3 6 4 . 7 2 5 Wheel . | . . . . . . . . . . . . Hover . | . . . . . . . . . . . . Flight . | . . . . . . . . . . . . Utility 53 | 1 2 2 11 3 6 8 3 . 3 6 8 Device 21 | . . 1 3 2 1 2 1 . 1 4 6 Storage 8 | 1 1 . 3 . 1 1 . . 1 . . Processor 12 | . 1 1 4 . 2 1 . . . 1 2 Hackware 3 | . . . . . . 1 . . 1 1 . Protection 9 | . . . 1 1 2 3 2 . . . . Artifact . | . . . . . . . . . . . . Weapon 40 | 2 . 3 12 1 7 3 4 . . . 8 Energy Gun 3 | 2 . 1 . . . . . . . . . Energy Cannon 16 | . . 1 9 1 3 . . . . . 2 Ballistic Gun 10 | . . . 1 . . 1 3 . . . 5 Ballistic Cannon 5 | . . . . . 3 1 1 . . . . Launcher 3 | . . . 1 . . 1 . . . . 1 Special Weapon . | . . . . . . . . . . . . Impact Weapon 2 | . . . 1 . 1 . . . . . . Slashing Weapon 1 | . . 1 . . . . . . . . . Piercing Weapon . | . . . . . . . . . . . . Special Melee Weapon . | . . . . . . . . . . . . Unidentified Prototypes 4 | . . . . . . 1 3 . . . . Parts Lost 67 | . . 3 9 2 6 3 3 . 3 4 34 Power 9 | . . 1 2 . . . . . . . 6 Propulsion 22 | . . 2 3 . 2 1 . . 2 1 11 Utility 19 | . . . 2 1 2 2 1 . . 3 8 Weapon 17 | . . . 2 1 2 . 2 . 1 . 9 Highest Loss Streak 22 | . . 2 2 2 2 2 1 . 2 3 22 To Critical Strikes 1 | . . . . . . . . . . . 1 Average Backups 13 | 3 8 9 11 14 13 14 14 14 14 14 12 Power 1 | . 1 1 1 1 1 2 2 2 2 1 . Propulsion 2 | 2 3 1 . 4 3 1 3 3 2 2 . Utility 3 | . . 1 2 4 4 2 3 3 3 4 7 Weapon 5 | . 3 4 5 3 3 6 6 6 6 6 4 Tool/Special . | . . . . . . . . . . . . Unused Backups 36 | . 2 2 14 5 2 6 1 1 . 1 2 Power 11 | . . . 3 2 . 4 1 1 . . . Propulsion 7 | . 2 . 3 2 . . . . . . . Utility 7 | . . . 2 1 1 1 . . . . 2 Weapon 10 | . . 2 6 . 1 . . . . 1 . Tool/Special 1 | . . . . . . 1 . . . . . Average Slot Usage (%) 94 | . 95 95 81 92 94 99 99 100 98 97 87 Engine 3 | . 14 13 3 6 5 6 1 . . . . Core 2 | . . . 3 . . . 4 6 6 3 2 Treads 2 | . 28 13 3 . . . . . . . . Leg 21 | . . 11 16 20 18 25 26 26 24 28 22 Device 10 | . . 5 6 5 10 15 13 13 11 9 10 Storage 8 | . 14 13 11 13 10 6 6 6 12 5 6 Processor 19 | . 10 8 18 26 27 17 20 20 20 17 17 Hackware 3 | . . . . . . 2 5 . 1 9 4 Protection 5 | . . . . 6 6 9 6 13 6 4 4 Energy Gun 1 | . 28 15 . . . . . . . . . Energy Cannon 4 | . . 1 12 12 10 . . . . . 5 Ballistic Gun 4 | . . . 1 . . . 8 13 12 10 2 Ballistic Cannon 2 | . . . . . . 12 3 . . . 1 Peak Build Rating 115 | 6 9 25 48 57 72 70 87 89 91 100 115 Average Rating 66 | 4 8 12 39 55 65 62 79 87 85 95 91 On Entrance 53 | . 6 9 25 48 57 56 70 87 89 91 98 Naked Turns . | . . . . . . . . . . . . Heaviest Build 79 | 13 23 24 42 52 66 57 56 62 64 66 79 Greatest Support 130 | 40 40 55 90 91 91 76 76 76 85 99 130 Greatest Overweight (x) 11 | . . 1 . . 1 . . . . . 11 Average Overweight (x) . | . . . . . . . . . . . . Largest Inventory Capacity 15 | 8 10 10 15 15 15 15 15 15 15 15 15 Average Capacity 14 | 6 9 10 12 15 15 15 15 15 15 14 14 Most Carried 15 | 5 10 10 15 15 15 15 15 15 15 15 15 Average Carried 13 | 3 8 9 11 14 13 14 14 14 14 14 13 Final Capacity 15 | 8 10 10 15 15 15 15 15 15 15 15 5 Final Carried 15 | 5 10 10 14 14 15 15 14 15 15 14 4 Class Distribution -------------------- 36% | Scavenger-Skirmisher 26% | Skirmisher 14% | Mutant 13% | Scavenger-Mutant 8% | Commander-Skirmisher Dominant Class ---------------- Mutant | -10/Materials Mutant | -10/Subcaves Scavenger-Mutant | -8/Materials Skirmisher | -7/Factory Skirmisher | -6/Factory Skirmisher | -6/Extension Scavenger-Skirmisher | -6/Cetus Scavenger-Skirmisher | -6/Archives Scavenger-Skirmisher | -6/Hub_04(d) Scavenger-Skirmisher | -5/Factory Scavenger-Skirmisher | -4/Factory Resources | -11 -10 -10 -8 -7 -6 -6 -6 -6 -6 -5 -4 ----------- Run | Yrd Mat Sub Mat Fac Fac Ext Cet Arc Hub Fac Fac Matter Collected 5223 | 218 62 148 472 90 229 1108 649 18 742 834 653 Remotely 996 | . . . . . 41 955 . . . . . Salvage Created 7828 | . 245 216 1863 437 940 692 390 79 654 953 1359 Parts 399 | . 12 16 92 20 49 33 22 3 32 59 61 Haulers Intercepted 9 | . 2 . 4 1 1 . . . . 1 . Recyclers Shooed 5 | . 2 . . . 1 1 . . . . 1 Parts Field Recycled . | . . . . . . . . . . . . Retrieved Matter . | . . . . . . . . . . . . Parts Self-Destructed 2 | . . 2 . . . . . . . . . Prevented . | . . . . . . . . . . . . Kills | -11 -10 -10 -8 -7 -6 -6 -6 -6 -6 -5 -4 ------- Run | Yrd Mat Sub Mat Fac Fac Ext Cet Arc Hub Fac Fac Combat Hostiles Destroyed 125 | . 2 5 30 6 18 13 10 1 7 15 18 Melee 1 | . . 1 . . . . . . . . . Guns 41 | . 2 4 3 . . . 6 1 7 13 5 Cannons 63 | . . . 19 4 15 10 3 . . . 12 AOE 10 | . . . 3 . 1 3 1 . . 2 . Classes Destroyed 17 | . 3 1 8 1 1 2 . . . . 1 Worker 5 | . . . 1 . . . . . 1 2 1 Builder 4 | . . . 1 . . 1 . . . . 2 Hauler 9 | . 2 . 4 1 1 . . . . 1 . Recycler 3 | . 1 . . . . 1 . . . . 1 Operator 2 | . . . 1 . . . . . . 1 . Watcher 11 | . . . 2 . 3 1 . . 1 2 2 Swarmer 23 | . . . 4 . 8 . 4 . . 4 3 Grunt 32 | . 2 . 13 4 3 4 . . 2 2 2 Brawler 4 | . . . 2 . . 2 . . . . . Duelist 1 | . . . . . . 1 . . . . . Sentry 16 | . . . 7 1 1 5 . 1 . 1 . Specialist 8 | . . . 4 . . . . . 2 . 2 Hunter 13 | . . . . . 2 . 2 . 2 . 7 Programmer 17 | . . . . 1 4 . . . 1 8 3 Heavy 1 | . . . . . . . . . . . 1 Behemoth 1 | . . . . . . 1 . . . . . Cetus Guard 4 | . . . . . . . 4 . . . . Enhanced Grunt 1 | . . . . . . . . . 1 . . Subdweller 5 | . . 5 . . . . . . . . . Guerrilla 2 | . . . . . . . . . 2 . . Best Kill Streak 5 | . 3 2 5 2 4 3 4 1 2 4 4 Combat Bots Only 4 | . 2 2 4 2 4 2 4 1 2 2 3 Max Kills in Single Turn 3 | . 1 1 3 1 1 2 2 1 2 2 2 Gunslinging 1 | . . . . . . . . . 1 1 . Exploded 3 | . . . 3 . 1 2 1 . . 2 . Melee 1 | . . 1 . . . . . . . . . Uniques/NPCs Destroyed 1 | . . . . . . . 1 . . . . A7 (-6/Cetus) Combat | -11 -10 -10 -8 -7 -6 -6 -6 -6 -6 -5 -4 -------- Run | Yrd Mat Sub Mat Fac Fac Ext Cet Arc Hub Fac Fac Hostile Shots Fired 1196 | . 8 45 121 51 112 134 96 . 54 91 484 Missed 379 | . 3 6 35 21 43 47 28 . 24 23 149 Hits 817 | . 5 39 86 30 69 87 68 . 30 68 335 Melee 1 | . . . . . . . . . . 1 . Projectile 816 | . 5 39 86 30 69 87 68 . 30 67 335 AOE 1 | . . . . . . . . . . . 1 Critical Strikes 42 | . . 1 6 1 . 1 6 . 2 7 18 Part Disruptions 3 | . . . . . 1 . . . 1 . 1 Damage Taken 14343 | . 60 858 1505 372 1272 1015 1299 . 739 1440 5783 Core 2022 | . 12 163 169 26 140 87 97 . 68 100 1160 Absorbed by Shields 250 | . . . . . . 129 121 . . . . Regen/Repaired (Parts) 1841 | . . . . . . . . . . 1841 . Core Remaining (%) 73 | 100 . 30 69 96 . . . . 53 90 . Volleys Fired 483 | . 14 27 79 22 59 51 29 1 39 59 103 Largest 2 | . 2 2 2 2 2 2 2 2 2 2 2 Hottest 196 | . 90 120 126 126 180 88 87 70 70 83 196 Shots Fired 927 | . 28 51 160 44 114 99 51 2 71 113 194 Gun 367 | . 28 47 23 . . 2 27 2 65 109 64 Cannon 547 | . . 4 136 44 114 93 16 . 6 4 130 Launcher 13 | . . . 1 . . 4 8 . . . . Special . | . . . . . . . . . . . . Kinetic 452 | . . . 23 . 8 95 43 2 71 113 97 Thermal 244 | . 28 51 6 1 61 . . . . . 97 Explosive 13 | . . . 1 . . 4 8 . . . . Electromagnetic 218 | . . . 130 43 45 . . . . . . Robot Hit Streak 26 | . 10 26 16 8 10 10 6 4 6 11 14 Robot Miss Streak 7 | . 2 1 4 3 3 6 6 . 7 4 6 Penetration Max 1 | . . . . . . 1 . . . 1 1 Secondary Targets 6 | . . . . . . . . . 3 3 . Max Gunslinging Chain 1 | . . . . . . . . . 1 1 . Shots Hit Robots 549 | . 20 51 106 28 59 52 23 2 34 59 115 Core Hits 291 | . 11 11 46 13 28 49 28 2 24 31 48 Critical Kills 21 | . . . . . 1 4 2 1 2 5 6 Critical Parts Destroyed 19 | . . . . . . 5 . . 2 5 7 Critical Strikes 47 | . . . 2 . 2 12 2 1 4 10 14 Meltdown 3 | . . . . . 1 . . . . . 2 Destroy 38 | . . . . . . 10 2 1 4 10 11 Blast 3 | . . . . . . 2 . . . . 1 Corrupt 3 | . . . 2 . 1 . . . . . . Melee Attacks 38 | . . 20 2 4 9 . 3 . . . . Impact 18 | . . . 2 4 9 . 3 . . . . Slashing 20 | . . 20 . . . . . . . . . Piercing . | . . . . . . . . . . . . Sneak Attacks 1 | . . . 1 . . . . . . . . Combat Hostiles . | . . . . . . . . . . . . Follow-up Attacks . | . . . . . . . . . . . . Damage Inflicted 17086 | . 252 490 2898 664 1844 2277 1108 50 1276 2432 3795 Guns 5334 | . 252 267 273 . . 38 394 50 1063 1966 1031 Cannons 9130 | . . 36 2258 664 1698 1592 185 . 33 . 2664 Explosions 2309 | . . . 261 . 146 647 529 . 160 466 100 Melee 293 | . . 187 106 . . . . . . . . Ramming 20 | . . . . . . . . . 20 . . Kinetic 7016 | . . . 273 . 103 1630 579 50 1096 1966 1319 Thermal 4778 | . 252 303 303 30 1133 . . . . 381 2376 Explosive 1407 | . . . 46 . . 647 529 . . 85 100 Electromagnetic 3572 | . . . 2170 634 608 . . . 160 . . Impact 106 | . . . 106 . . . . . . . . Slashing 187 | . . 187 . . . . . . . . . Piercing . | . . . . . . . . . . . . Highest Corruption 21 | . 4 4 4 3 4 5 5 5 7 5 21 Average Corruption 3 | . 3 4 2 2 2 4 5 5 5 2 3 Corruption Purged . | . . . . . . . . . . . . Corruption Blocked . | . . . . . . . . . . . . Effects 211 | . 2 15 12 2 18 59 23 3 24 29 24 Message Errors 49 | . . 3 4 . 2 21 4 1 7 4 3 Matter Fused 47 | . . 3 2 . 4 15 9 . 5 5 4 Heat Flow Errors 19 | . . . 1 2 . 6 1 1 2 2 4 Energy Discharges 25 | . . 2 1 . 4 4 2 1 2 6 3 Parts Rejected 2 | . . . . . . 1 1 . . . . Parts Fused 4 | . 1 . . . . 2 . . 1 . . Data Loss (minor) 27 | . 1 3 1 . 4 4 2 . 3 6 3 Data Loss (major) 15 | . . 1 1 . 2 1 4 . 1 2 3 Misfires 9 | . . 1 2 . 2 1 . . 2 . 1 Alerts 7 | . . 1 . . . 2 . . . 2 2 Weapon Failures 7 | . . 1 . . . 2 . . 1 2 1 Overload Shots . | . . . . . . . . . . . . Overflow Damage 370 | . . . 60 . 91 15 . . . 125 79 Projectiles 39 | . . . 15 . 21 . . . . . 3 Explosions 309 | . . . 23 . 70 15 . . . 125 76 Melee 22 | . . . 22 . . . . . . . . Knockbacks 13 | . . . . . 2 5 . . 2 . 4 Impact 1 | . . . . . . . . . 1 . . Kinetic 12 | . . . . . 2 5 . . 1 . 4 Secondary . | . . . . . . . . . . . . Self-Inflicted Damage 430 | . . . 55 . 55 60 . . 106 154 . Shots 7 | . . . 2 . 1 1 . . 1 2 . Rammed . | . . . . . . . . . . . . Targets Rammed 3 | . . . . . . . . 1 2 . . Kicked 3 | . . . . . . . . 1 2 . . Crushed . | . . . . . . . . . . . . Highest Temperature 676 | . 265 84 300 676 415 257 174 79 234 250 396 Average Temperature 95 | . 100 55 73 183 132 68 91 61 57 114 82 Received Heat Transfer 1561 | . 33 15 666 117 93 276 45 . 48 189 79 Effects 13 | . 1 . 1 8 1 . . . . . 2 Shutdowns 3 | . . . . 2 1 . . . . . . Energy Bleed 1 | . . . . . . . . . . . 1 Interference 8 | . 1 . 1 5 . . . . . . 1 Short Circuit 1 | . . . . 1 . . . . . . . Siege Activations . | . . . . . . . . . . . . Martial Activations . | . . . . . . . . . . . . Shielding Activations . | . . . . . . . . . . . . Robots Disrupted 2 | . . . . 1 1 . . . . . . Combat Hostiles 2 | . . . . 1 1 . . . . . . Robots Corrupted 10 | . . . 7 2 1 . . . . . . Combat Hostiles 8 | . . . 5 2 1 . . . . . . Parts Fried 18 | . . . 11 3 3 . . . 1 . . Impact Corruptions 3 | . . . 2 . . . . . 1 . . Robots Melted 3 | . . . . . 1 . . . . . 2 Combat Hostiles 2 | . . . . . 1 . . . . . 1 Parts Melted 12 | . . 2 . . 2 . . . . . 8 Heat Transferred 6861 | . 657 645 285 37 1637 . . . . 150 3450 Parts Sabotaged . | . . . . . . . . . . . . Parts Stolen . | . . . . . . . . . . . . Parts Stripped . | . . . . . . . . . . . . Power Chain Reactions 6 | . . . 4 . 1 . . . 1 . . Alert | -11 -10 -10 -8 -7 -6 -6 -6 -6 -6 -5 -4 ------- Run | Yrd Mat Sub Mat Fac Fac Ext Cet Arc Hub Fac Fac Maximum Alert Level 4 | . . . 2 . 1 4 4 2 3 3 2 Low Security (%) 47 | 100 100 . 64 100 96 59 . . 48 . . Level 1 13 | . . . 33 . 3 2 . . 17 36 8 Level 2 22 | . . . 2 . . 3 . 100 25 48 91 Level 3 11 | . . . . . . 9 91 . 9 15 . Level 4 5 | . . . . . . 25 8 . . . . Level 5 . | . . . . . . . . . . . . High Security . | . . . . . . . . . . . . Max Security . | . . . . . . . . . . . . Peak Influence 1416 | . 45 . 423 120 307 1416 1190 608 865 798 563 Initial 787 | . . . . 120 7 149 787 466 163 420 377 Average 348 | . 6 . 159 51 75 453 915 536 331 468 473 Influence Increases 7864 | . 74 . 963 206 714 1773 949 172 1160 1053 800 Destroy 0b10 Robot/C 3360 | . 40 . 600 120 360 720 380 80 400 300 360 Destroy 0b10 Robot/NC 205 | . 15 . 45 5 20 30 10 . 15 35 30 Destroy Leader 752 | . 14 . 162 32 108 82 40 . 144 76 94 Allied During Kill 1520 | . . . . . . 763 399 58 298 2 . Successful Hack 133 | . 5 . 10 . . 67 8 . 4 39 . Disable Machine 840 | . . . 45 15 150 15 30 30 180 240 135 Destroy Structure 829 | . . . 26 4 76 66 82 4 119 316 136 Partial Spotted 15 | . . . 15 . . . . . . . . Lose Combat Pursuer 210 | . . . 60 30 . 30 . . . 45 45 Influence Decreases 7473 | . 74 . 698 454 426 672 1189 870 769 1141 1180 Entered New Map 2768 | . . . . 145 10 156 619 700 305 439 394 Time Decay 3674 | . 74 . 468 289 356 435 380 150 434 642 446 Lost Part 621 | . . . 80 20 60 21 30 . 30 40 340 Lost Ally 260 | . . . . . . 60 160 20 . 20 . Purge Threat 150 | . . . 150 . . . . . . . . Squads Dispatched 46 | . 2 . 4 1 8 4 2 . 11 7 7 Investigation 5 | . . . 1 . . 1 2 . 1 . . Extermination 14 | . . . . 1 5 . . . 3 4 1 Reinforcement 20 | . 2 . 3 . 3 1 . . 6 . 5 Assault 7 | . . . . . . 2 . . 1 3 1 Garrison . | . . . . . . . . . . . . Intercept . | . . . . . . . . . . . . Searches Triggered . | . . . . . . . . . . . . Construction Impeded 3 | . . . . . 1 . . . 1 . 1 Haulers Reinforced 3 | . . . . . 1 . . . 1 . 1 Active Scanning Responses . | . . . . . . . . . . . . Cargo Convoy Interrupts . | . . . . . . . . . . . . Stealth | -11 -10 -10 -8 -7 -6 -6 -6 -6 -6 -5 -4 --------- Run | Yrd Mat Sub Mat Fac Fac Ext Cet Arc Hub Fac Fac Distress Signals 13 | . 1 . 3 1 1 . 3 . 1 1 2 Communications Jammed . | . . . . . . . . . . . . Distress Signals . | . . . . . . . . . . . . Times Spotted 230 | . 5 6 43 18 22 33 19 3 24 26 31 Peak Tracking Total 6 | . 2 2 4 6 5 6 5 1 3 5 6 Tactical Retreats 10 | . . . 3 1 . 2 . . . 2 2 Traps | -11 -10 -10 -8 -7 -6 -6 -6 -6 -6 -5 -4 ------- Run | Yrd Mat Sub Mat Fac Fac Ext Cet Arc Hub Fac Fac Traps Triggered 14 | . 2 1 4 . 3 2 . . 1 . 1 Indirectly . | . . . . . . . . . . . . Trap Hack Attempts . | . . . . . . . . . . . . Triggered . | . . . . . . . . . . . . Disarmed . | . . . . . . . . . . . . Reprogrammed . | . . . . . . . . . . . . Reused . | . . . . . . . . . . . . Traps Extracted . | . . . . . . . . . . . . Installed . | . . . . . . . . . . . . Triggered . | . . . . . . . . . . . . Machines | -11 -10 -10 -8 -7 -6 -6 -6 -6 -6 -5 -4 ---------- Run | Yrd Mat Sub Mat Fac Fac Ext Cet Arc Hub Fac Fac Machines Disabled 63 | . . 1 3 1 10 4 5 2 12 16 9 Max in Single Turn 6 | . . 1 1 1 6 2 1 . 3 6 4 Network Hub 1 | . . . . . . . . . 1 . . Machines Repaired . | . . . . . . . . . . . . Machines Dismantled . | . . . . . . . . . . . . Machines Sabotaged . | . . . . . . . . . . . . Overloaded Fab Kills . | . . . . . . . . . . . . Hacking | -11 -10 -10 -8 -7 -6 -6 -6 -6 -6 -5 -4 --------- Run | Yrd Mat Sub Mat Fac Fac Ext Cet Arc Hub Fac Fac Machines Accessed 46 | . 2 2 7 1 5 15 2 1 4 6 1 Terminals 35 | . 2 . 5 . 3 15 2 . 4 3 1 Fabricators 1 | . . . . . 1 . . . . . . Repair Stations 2 | . . . . . . . . . . 2 . Recycling Units 3 | . . . 1 . 1 . . . . 1 . Scanalyzers 1 | . . . 1 . . . . . . . . Garrison Access 1 | . . . . 1 . . . . . . . Total Hacks 189 | . 6 13 23 1 8 38 9 25 12 52 2 Successful 99 | . 1 13 8 . 2 14 2 25 1 33 . Failed 90 | . 5 . 15 1 6 24 7 . 11 19 2 Catastrophic 22 | . . . 4 1 1 4 4 . 3 5 . Database Lockouts . | . . . . . . . . . . . . Manual 51 | . 5 . 11 1 2 10 1 2 6 11 2 Terminals 103 | . 6 . 16 . 4 38 9 . 12 16 2 Fabricators 2 | . . . . . 2 . . . . . . Repair Stations 32 | . . . . . . . . . . 32 . Recycling Units 10 | . . . 4 . 2 . . . . 4 . Scanalyzers 3 | . . . 3 . . . . . . . . Garrison Access 1 | . . . . 1 . . . . . . . Terminal Hacks 63 | . . 13 5 . 1 13 2 25 1 3 . Record 39 | . . 12 . . . . 2 25 . . . Robot Analysis 1 | . . . . . . 1 . . . . . Prototype ID Bank 2 | . . . 2 . . . . . . . . Open Door 12 | . . . . . 1 11 . . . . . Branch Access Points 1 | . . . 1 . . . . . . . . Emergency Access Points 1 | . . . . . . . . . 1 . . Terminal Index 1 | . . . . . . . . . . 1 . Alert Level 2 | . . . 1 . . 1 . . . . . Unreport Threat 1 | . . . 1 . . . . . . . . Locate Traps 1 | . . . . . . . . . . 1 . Zone Layout 1 | . . . . . . . . . . 1 . Proto ID Catalog 1 | . . 1 . . . . . . . . . Fabricator Hacks 1 | . . . . . 1 . . . . . . Network Status 1 | . . . . . 1 . . . . . . Repair Station Hacks 26 | . . . . . . . . . . 26 . Scan Component 13 | . . . . . . . . . . 13 . Repair 13 | . . . . . . . . . . 13 . Recycling Unit Hacks 4 | . . . 1 . . . . . . 3 . Process 1 | . . . . . . . . . . 1 . Report Inventory 2 | . . . 1 . . . . . . 1 . Retrieve Matter 1 | . . . . . . . . . . 1 . Scanalyzer 1 | . . . 1 . . . . . . . . Insert Component 1 | . . . 1 . . . . . . . . Garrison Access Hacks . | . . . . . . . . . . . . Unauthorized Hacks 4 | . 1 . 1 . . 1 . . . 1 . Terminals 4 | . 1 . 1 . . 1 . . . 1 . Botnet 4 | . 1 . 1 . . 1 . . . 1 . Fabricators . | . . . . . . . . . . . . Repair Stations . | . . . . . . . . . . . . Recycling Units . | . . . . . . . . . . . . Scanalyzers . | . . . . . . . . . . . . Garrison Access . | . . . . . . . . . . . . Data Cores Recovered 2 | . . . . . . . . . . 2 . Used . | . . . . . . . . . . . . Hacking Detections 38 | . 2 . 7 1 4 11 2 . 4 6 1 Full Trace Events 8 | . 1 . 3 . . 1 2 . 1 . . Feedback Events 1 | . . . 1 . . . . . . . . Corruption 1 | . . . 1 . . . . . . . . Feedback Blocked . | . . . . . . . . . . . . Robot Schematics Acquired . | . . . . . . . . . . . . Robots Built . | . . . . . . . . . . . . Authchips . | . . . . . . . . . . . . Time . | . . . . . . . . . . . . Total Robot Build Rating . | . . . . . . . . . . . . Part Schematics Acquired . | . . . . . . . . . . . . Parts Built . | . . . . . . . . . . . . Authchips . | . . . . . . . . . . . . Time . | . . . . . . . . . . . . Total Part Build Rating . | . . . . . . . . . . . . Parts Repaired 13 | . . . . . . . . . . 13 . Time 876 | . . . . . . . . . . 876 . Parts Recycled . | . . . . . . . . . . . . Recycled Matter 13 | . . . . . . . . . . 13 . Retrieved Matter 13 | . . . . . . . . . . 13 . Retrieved Components . | . . . . . . . . . . . . Parts Scanalyzed 1 | . . . 1 . . . . . . . . Part Schematics Acquired . | . . . . . . . . . . . . Parts Damaged . | . . . . . . . . . . . . Bothacking | -11 -10 -10 -8 -7 -6 -6 -6 -6 -6 -5 -4 ------------ Run | Yrd Mat Sub Mat Fac Fac Ext Cet Arc Hub Fac Fac Used RIF Installer . | . . . . . . . . . . . . Robots Hacked . | . . . . . . . . . . . . Non-combat . | . . . . . . . . . . . . Combat . | . . . . . . . . . . . . Robot Hacks Applied . | . . . . . . . . . . . . Relay Couplers Released . | . . . . . . . . . . . . Fabnet Peak Effective % . | . . . . . . . . . . . . Robots Rewired 7 | . . . . . . 7 . . . . . Allies Hacked 1 | . . . . . . 1 . . . . . Hacks Repelled . | . . . . . . . . . . . . Allies | -11 -10 -10 -8 -7 -6 -6 -6 -6 -6 -5 -4 -------- Run | Yrd Mat Sub Mat Fac Fac Ext Cet Arc Hub Fac Fac Total Allies 28 | . . . . . . 23 5 . . . . Largest Group 19 | . . . . . . 19 15 6 4 1 . Highest-Rated Group 863 | . . . . . . 701 863 321 260 96 . Highest-Rated Ally 159 | . . . . . . 159 159 96 96 96 . Total Orders 4 | . . . . . . . . . 4 . . STAY 2 | . . . . . . . . . 2 . . FOLLOW 2 | . . . . . . . . . 2 . . Ally Attacks 366 | . . . . . . 183 86 25 66 6 . Total Damage 8230 | . . . . . . 3425 2229 575 1711 290 . Kills 66 | . . . . . . 30 17 4 14 1 . Allies Corrupted 1 | . . . . . . 1 . . . . . Allies Melted . | . . . . . . . . . . . . Intel | -11 -10 -10 -8 -7 -6 -6 -6 -6 -6 -5 -4 ------- Run | Yrd Mat Sub Mat Fac Fac Ext Cet Arc Hub Fac Fac Active Infowar (turns) 12828 | . 271 816 1035 709 2068 2265 885 302 1063 2306 1108 Optics 12828 | . 271 816 1035 709 2068 2265 885 302 1063 2306 1108 Sensors 9898 | . . . . 531 2068 2265 885 302 1063 1888 896 T.N.C. 2903 | . . . 574 696 1633 . . . . . . Robot Analysis Total 1 | . . . . . . 1 . . . . . Derelict Logs Recovered . | . . . . . . . . . . . . Drone Launches . | . . . . . . . . . . . . Drone Recoveries . | . . . . . . . . . . . . Exploration | -11 -10 -10 -8 -7 -6 -6 -6 -6 -6 -5 -4 ------------- Run | Yrd Mat Sub Mat Fac Fac Ext Cet Arc Hub Fac Fac Turns Passed 13356 | 84 429 817 1320 709 2068 2265 885 302 1063 2306 1108 Spaces Moved 7164 | 46 219 404 729 435 1090 1410 573 232 645 886 495 Core 9 | 2 . . . . . . . . . . 7 Treads 448 | 44 219 185 . . . . . . . . . Legs 6707 | . . 219 729 435 1090 1410 573 232 645 886 488 Wheels . | . . . . . . . . . . . . Hover . | . . . . . . . . . . . . Flight . | . . . . . . . . . . . . Fastest Speed 50 | 50 160 120 125 123 120 120 120 120 97 97 50 Average Speed 124 | 155 160 159 125 123 128 120 120 120 116 108 127 Slowest Speed 600 | 160 160 190 130 126 190 120 120 120 120 114 600 Overloaded Moves . | . . . . . . . . . . . . Propulsion Burnouts . | . . . . . . . . . . . . Robots Hopped . | . . . . . . . . . . . . Potential Cave-ins 3 | . . . . . . . . . . 3 . Cave-ins Triggered . | . . . . . . . . . . . . Exploration Rate (%) 41 | 4 44 18 56 14 16 97 79 100 34 21 15 Regions Visited 11 Branch Regions 5 Pre-discovered Areas . | . . . . . . . . . . . . Known Exits Taken 9 | . . 1 1 1 1 1 1 1 1 1 . Unknown Exits Taken 2 | 1 1 . . . . . . . . . . Scrap Searched 3 | . . 3 . . . . . . . . . Spaces Dug 55 | . . . . 4 18 . 18 . 4 11 . Terrain Destroyed 752 | . . . 29 4 86 83 123 1 185 172 69 Melee 12 | . . . . 4 8 . . . . . . Projectile 210 | . . . . . 24 22 9 1 30 55 69 AOE 528 | . . . 29 . 54 61 114 . 155 115 . Terrain Rammed . | . . . . . . . . . . . . Walls Destroyed . | . . . . . . . . . . . . Machines Disabled . | . . . . . . . . . . . . Actions | -11 -10 -10 -8 -7 -6 -6 -6 -6 -6 -5 -4 --------- Run | Yrd Mat Sub Mat Fac Fac Ext Cet Arc Hub Fac Fac Total 10601 | 56 270 489 981 558 1627 1885 717 254 885 2105 774 Wait 2330 | . 26 7 59 64 426 279 64 16 168 1107 114 Move 7153 | 45 218 403 728 434 1089 1409 572 231 644 885 495 Hop . | . . . . . . . . . . . . Pick Up 137 | 5 7 10 37 14 11 10 6 2 4 19 12 Fast Attach 59 | 6 2 2 11 . 2 4 6 . 4 13 9 Attach 69 | . . 6 11 4 9 5 4 . 4 7 19 Detach 15 | . . . 2 . 1 3 3 . 2 1 3 Swap 107 | . . 5 17 5 13 21 15 1 13 8 9 Drop 119 | . 3 9 35 11 6 17 15 2 5 6 10 Fire 483 | . 14 27 79 22 59 51 29 1 39 59 103 Melee 38 | . . 20 2 4 9 . 3 . . . . Ram . | . . . . . . . . . . . . Kick 3 | . . . . . . . . 1 2 . . Crush . | . . . . . . . . . . . . Escape Stasis 6 | . . . . . 2 4 . . . . . Rewire 82 | . . . . . . 82 . . . . . Trap . | . . . . . . . . . . . . Miscellaneous . | . . . . . . . . . . . . Route ------- -11/Scrapyard -10/Materials (discovered 3 exits: [*Mat] / [*Min] / *Sub) -10/Subcaves -8/Materials (discovered 2 exits: *Fac x2) -7/Factory (discovered 2 exits: *Fac x2) -6/Factory -6/Extension (discovered 3 exits: *Fac x2 / *Cet) -6/Cetus (discovered 3 exits: *Fac x2 / *Arc) -6/Archives (discovered 3 exits: *Fac / *Hub x2) -6/Hub_04(d) (discovered 2 exits: *Fac x2) -5/Factory (discovered 2 exits: *Fac / *Upp) -4/Factory History --------- Turn | Location | Event 10 | -11/Scrapyard | Discovered new exit (range 16) 85 | -11/Scrapyard | Entered Materials 86 | -10/Materials | Met a group of wandering Federalists 129 | -10/Materials | Discovered new exit (range 14) 247 | -10/Materials | Discovered new exit (range 5) 306 | -10/Materials | Build established: Mutant 403 | -10/Materials | Discovered new exit (range 7) 514 | -10/Materials | Entered Subcaves 515 | -10/Subcaves | Continued accompanying wandering Federalists (4) 615 | -10/Subcaves | Lost 4 allies 735 | -10/Subcaves | Shifting Twisted Machinery released Sub. Shrapnel Launcher 743 | -10/Subcaves | Shifting Twisted Machinery released Sub. Laser 900 | -10/Subcaves | Visited 4L-MR0's lab 922 | -10/Subcaves | Found Cargo Legs 1013 | -10/Subcaves | Discovered new exit (range 2) 1106 | -10/Subcaves | Visited Clippyterm 1112 | -10/Subcaves | Learned Factory stockpile data 1174 | -10/Subcaves | Core integrity fell below 50% 1206 | -10/Subcaves | Attached Cargo Legs, gained temporary slots: Utility x2 1329 | -10/Subcaves | Identified exit to Materials 1331 | -10/Subcaves | Entered Materials 1331 | -8/Materials | Evolved 4 slots: Propulsion x2, Utility x2 2199 | -8/Materials | Discovered new exit (range 20) 2247 | -8/Materials | Identified exit to Factory 2628 | -8/Materials | Discovered exit to Factory (range 11) 2651 | -8/Materials | Entered Factory 2651 | -7/Factory | Evolved 2 slots: Utility x2 3070 | -7/Factory | Discovered new exit (range 20) 3077 | -7/Factory | Build established: Skirmisher 3146 | -7/Factory | Identified exit to Factory 3284 | -7/Factory | Discovered exit to Factory (range 12) 3360 | -7/Factory | Entered another Factory area 3360 | -6/Factory | Evolved 2 slots: Utility x2 5071 | -6/Factory | Discovered new exit (range 10) 5084 | -6/Factory | Identified exit to Extension 5428 | -6/Factory | Entered Extension 5434 | -6/Extension | Disrupted transfer network 6153 | -6/Extension | Spotted B-75 Beast 6309 | -6/Extension | Rescued a captive Derelict 6310 | -6/Extension | Rescued a captive Derelict 6433 | -6/Extension | Rescued a captive Derelict 6482 | -6/Extension | Rescued a captive Derelict 6487 | -6/Extension | Rescued a captive Derelict 6563 | -6/Extension | Rescued a captive Derelict 6573 | -6/Extension | Rescued a captive Derelict 6656 | -6/Extension | Rescued A7 6673 | -6/Extension | Rescued a captive Derelict 6674 | -6/Extension | Rescued a captive Derelict 6711 | -6/Extension | Build established: Commander-Skirmisher 6714 | -6/Extension | Rescued a captive Derelict 6740 | -6/Extension | Rescued a captive Derelict 6741 | -6/Extension | Rescued a captive Derelict 6823 | -6/Extension | Destroyed B-75 Beast 6826 | -6/Extension | Spotted B-75 Beast 6828 | -6/Extension | First assault squad dispatched 6842 | -6/Extension | Allies destroyed B-75 Beast 6888 | -6/Extension | Lost 3 allies 6930 | -6/Extension | Discovered new exit (range 3) 6930 | -6/Extension | Identified exit to Factory 7038 | -6/Extension | Discovered new exit (range 21) 7039 | -6/Extension | Discovered exit to Factory (range 20) 7060 | -6/Extension | Identified exit to Cetus 7285 | -6/Extension | Rescued a captive Derelict 7309 | -6/Extension | Rescued a captive Derelict 7311 | -6/Extension | Rescued a captive Derelict 7575 | -6/Extension | P-60 Hacker assimilated allied XI-M22(g) 7610 | -6/Extension | Lost 3 allies 7693 | -6/Extension | Entered Cetus 7693 | -6/Cetus | Accompanied by 15 allies (A7) 7698 | -6/Cetus | Acquired a Cetus Manufacturing Module code from A7 7698 | -6/Cetus | Spotted Cetus Guard 7699 | -6/Cetus | Spotted Cetus Guard 7703 | -6/Cetus | Spotted Cetus Guard 7704 | -6/Cetus | Spotted Cetus Guard 7714 | -6/Cetus | Allies destroyed Cetus Guard 7717 | -6/Cetus | Destroyed Cetus Guard 7726 | -6/Cetus | Allies destroyed Cetus Guard 7728 | -6/Cetus | Destroyed Cetus Guard 7757 | -6/Cetus | Lost 5 allies 7788 | -6/Cetus | Discovered exit to Factory (range 21) 7877 | -6/Cetus | Build established: Scavenger-Skirmisher 7934 | -6/Cetus | Started Cetus Manufacturing Module 7944 | -6/Cetus | Discovered new exit (range 22) 7959 | -6/Cetus | Manufactured an Enhanced Grunt 7976 | -6/Cetus | Identified exit to Archives 7984 | -6/Cetus | Manufactured an Enhanced Grunt 8009 | -6/Cetus | Manufactured an Enhanced Grunt 8034 | -6/Cetus | Manufactured an Enhanced Grunt 8056 | -6/Cetus | Spotted Cetus Guard 8059 | -6/Cetus | Manufactured an Enhanced Grunt 8260 | -6/Cetus | Destroyed Cetus Guard 8263 | -6/Cetus | Spotted Cetus Guard 8265 | -6/Cetus | Spotted Cetus Guard 8266 | -6/Cetus | Spotted Cetus Guard 8272 | -6/Cetus | Allies destroyed A7 8276 | -6/Cetus | Extracted ID and sensor layout for unrecognized location from A7's data core 8276 | -6/Cetus | Allies destroyed Cetus Guard 8286 | -6/Cetus | Destroyed Cetus Guard 8288 | -6/Cetus | Allies destroyed Cetus Guard 8289 | -6/Cetus | Discovered exit to Factory (range 22) 8311 | -6/Cetus | Lost 3 allies 8321 | -6/Cetus | Met Revision 17 8443 | -6/Cetus | Security sweep announced 8497 | -6/Cetus | Cetus Manufacturing Module disabled 8533 | -6/Cetus | Lost 3 allies 8578 | -6/Cetus | Entered Archives 8578 | -6/Archives | Accompanied by 6 allies 8611 | -6/Archives | Discovered new exit (range 22) 8618 | -6/Archives | Unable to access archive contents 8637 | -6/Archives | Identified exit to Hub_04(d) 8656 | -6/Archives | Discovered exit to Hub_04(d) (range 22) 8664 | -6/Archives | Unable to access archive contents 8670 | -6/Archives | Discovered exit to Factory (range 21) 8677 | -6/Archives | Unable to access archive contents 8691 | -6/Archives | Unable to access archive contents 8880 | -6/Archives | Entered Hub_04(d) 8880 | -6/Hub_04(d) | Accompanied by 4 allies 9593 | -6/Hub_04(d) | Discovered exit to Factory (range 7) 9717 | -6/Hub_04(d) | Discovered exit to Factory (range 3) 9846 | -6/Hub_04(d) | Network Hub disabled 9855 | -6/Hub_04(d) | Spotted Lightning 9863 | -6/Hub_04(d) | Spotted Lightning 9930 | -6/Hub_04(d) | First assault squad dispatched 9943 | -6/Hub_04(d) | Entered Factory 9943 | -5/Factory | Accompanied by 1 ally 9943 | -5/Factory | Evolved 2 slots: Propulsion x1, Utility x1 10482 | -5/Factory | Repaired Myomer Leg 10591 | -5/Factory | Repaired Centrium Medium Armor Plating 10643 | -5/Factory | Repaired Matter Compressor 10760 | -5/Factory | Repaired Adv. KE Penetrator 10861 | -5/Factory | Repaired Adv. KE Penetrator 10970 | -5/Factory | Repaired Centrium Medium Armor Plating 11022 | -5/Factory | Repaired Arm. Leg 11049 | -5/Factory | Repaired Lrg. Storage Unit 11144 | -5/Factory | Repaired Myomer Leg 11195 | -5/Factory | Repaired Imp. VSS Leg 11348 | -5/Factory | Discovered new exit (range 6) 11365 | -5/Factory | Identified exit to Upper Caves 11443 | -5/Factory | First assault squad dispatched 11595 | -5/Factory | Repaired Adv. Sensor Array 11652 | -5/Factory | Repaired Adv. Cooling System 11710 | -5/Factory | Repaired Neutrino Core 11921 | -5/Factory | Lost 3 parts (1n2u) 12006 | -5/Factory | Discovered new exit (range 11) 12049 | -5/Factory | Identified exit to Factory 12172 | -5/Factory | Build established: Scavenger-Mutant 12249 | -5/Factory | Entered another Factory area 12249 | -4/Factory | Evolved 2 slots: Power x1, Propulsion x1 12816 | -4/Factory | Build established: Scavenger-Skirmisher 12999 | -4/Factory | First assault squad dispatched 13274 | -4/Factory | Core integrity fell below 50% 13292 | -4/Factory | System corruption reached 10% 13322 | -4/Factory | Core integrity fell below 20% 13357 | -4/Factory | Destroyed by P-70 Sage with Light Ion Engine chain reaction Last Messages --------------- 13341_ K-01 Serf collects debris. 13343_ Lgt. Antimatter Reactor destroyed. 13344_ Acquired Coil Gun. 13345_ K-01 Serf collects debris. 13346_ Slug penetrates P-70 Sage. 13346_ Slug penetrates Door. 13347_ System corrupted: Heat flow error (+234). 13348_ System corrupted: Coil Gun jammed. 13349_ K-01 Serf collects debris. 13350_ Dropped Adv. Sensor Array. 13350_ Dropped Hpw. Tractor Beam. 13351_ Dropped Imp. Recalibrator. 13351_ Dropped Lrg. Storage Unit. 13352_ Dropped Coil Gun. 13354_ K-01 Serf collects debris. 13355_ Acquired Coil Gun. 13357_ Chain reaction triggered in Lgt. Ion Engine. 13357_ K-01 Serf destroyed. 13357_ P-70 Sage destroyed. Map ----- +----------------------------------------------------+ | ????????# +???????????? | | ?????######+###########+#+############???????????? | | ?????# ^ ## #????????????????? | | ?????# ## #????????????????? | | ?????# """"""" ## #????????????????? | | ?????# """"""" ## #????????????????? | | ?????# """"""" ^ ## #????????????????? | | ?????# """"""" ## % #????????????????? | | ?????# ^ ## ################## | | ?????# """"""" ## # | | ?????# """"""" ## # """"""" """"""" | | ?????# """"""" ^ ## # """"""" """"""" | | ?????# """"""" ## # """"""" """"""" | | ?????# ## # """"""" """"""" | | ?????###########+###"+######"#### | | ???????????????????##??????# #??# | | ???????????????????????????# #??# | | ???????????????????????????# #??##+#####+###+##### | | ???????????????????????????# ##### #??# #???? | | ???????????????????????????# #??# ##??? | | ???????????????????????????# #######??# ##??? | | ???????????????????????????#%#????????# ##### | | ????????????????????????####!####????## [%[ | | ????????????????????????# ;=!% #????# !%####### | | ???? !*####!##%=p!;####### ##????? | | ???? %!=%!!! @%[[w!=! # ##????? | | ???? =!####!; ;=|;#%###### #?????? | | ??????????##????????###########[|#???# ] #?????? | | ????????????????????# ??# # #??###]###?????? | | ????????????????????# ??#!!#######%#???????? | | ????????????????????# ?#%### ##!#???????? | | ????????????????????# ?#!= % #???????? | | ????????????????????#! # [% ####???????? | | ????????????????????# # #+############? | | ????????????????????# + # #? | | ????????????????????# ! #"## # """ """ #? | | ????????????????????############## # """ """ #? | | ?????????????????????????????????# # """ """ #? | | ?????????????????????????????????# # #? | | ?????????????????????????????????# ##############? | | ?????????????????????????????????# ?????????????? | | ?????????????????????????????????# ?????????????? | | ?????????????????????????????????+ ?????????????? | | ?????????????????????????????????# ?????????????? | | ?????????????????????????????????? ?????????????? | | ?????????????????????????????????? ?????????????? | | ?????????????????????????????????? ?????????????? | | ?????????????????????????????????? ?????????????? | | ?????????????????????????????????? ?????????????? | | ?????????????????????????????????? ?????????????? | +----------------------------------------------------+ Best States ------------- Heat Dissipation 74 Energy Generation 39 Energy Capacity 690 Matter Stores 550 Matter Capacity 550 Sight Range 22 Robot Scan Range 16 Terrain Scan Density 10 Base Temperature (-) 200 Armor Coverage 450 Phase Shifting 10 Evasion (%) 70 Targeting Accuracy 8 Target Analysis 6 Armor Integrity Analysis 30 Recoil Reduction 2 Particle Charging 20 Kinecelleration 30 Offensive Hacking 10 Defensive Hacking 14 Item Schematics ----------------- None Robot Schematics ------------------ None Fabricated ------------ Nothing Repaired ---------- Myomer Leg | 36% | -5/Factory Centrium Medium Armor Plating | 17% | -5/Factory Matter Compressor | 10% | -5/Factory Adv. KE Penetrator | 16% | -5/Factory Adv. KE Penetrator | 33% | -5/Factory Centrium Medium Armor Plating | 43% | -5/Factory Arm. Leg | 50% | -5/Factory Lrg. Storage Unit | 54% | -5/Factory Myomer Leg | 75% | -5/Factory Imp. VSS Leg | 73% | -5/Factory Adv. Sensor Array | 29% | -5/Factory Adv. Cooling System | 38% | -5/Factory Neutrino Core | 25% | -5/Factory Alien Tech Used ----------------- None Achievements -------------- Prison Break Project G-00 Revising The Future Challenges ------------ None Game ------ Seed TitaniumHelicalOptics Manual? 0 Play Time 02:38:26 Cumulative 57.0 hours Start 2025.07.20 @ 16:59:01 End 2025.07.20 @ 20:43:11 Sessions 3 Manual Loads 0 Difficulty Rogue Special Mode None Game No. 41 Rogue 41 Adventurer 0 Explorer 0 Win Type - Total 0 Types 0/0/0/0/0/0/0/0/0/0 Lore% 39 Gallery% 43 Achievement% 37 Wizard Run 0 Options --------- Layout 1 ASCII 0 Keyboard 0 Movement Numpad Keybinds 0 Fullscreen 1 Font 24/Smallcaps Map View 50x35 Zoom Use 0% Tactical HUD 1 Map Filters NONE Filters NONE Steam 1 RUN: 77fdafe5-3140-4eca-985b-44fa0d22dfef